Cogmind - Beta 14 @@@ ROGUE MODE // 2024.11.02 @ 14:03:51 Player: MadBadger Result: Destroyed by G-34 Mercenary with Small Laser Performance ------------- Evolutions (0) 0 Regions Visited (1) 200 Robots Destroyed (12) 60 Value Destroyed (234) 234 Prototype IDs (0) 0 Alien Tech Used (0) 0 Bonus (0) 0 TOTAL SCORE: 494 Bonus ------- None Cogmind --------- Core Integrity 0/250 Matter 278/300 Energy 79/100 System Corruption 0% Temperature Cool (20) Movement Walking (400) Ox4 Location -10/Materials Parts ------- > --- POWER (1) -------- (None) > --- PROPULSION (2) --- Aluminum Leg > --- UTILITY (2) ------ High-capacity Storage Unit Signal Interpreter > --- WEAPON (2) ------- Small Laser > --- INVENTORY (20) --- Aluminum Leg Wheel Wheel Large Storage Unit Peak State ------------ > --- POWER ------------ Light Ion Engine > --- PROPULSION ------- Aluminum Leg Aluminum Leg > --- UTILITY ---------- Large Storage Unit High-capacity Storage Unit > --- WEAPON ----------- Small Laser Assault Rifle > --- INVENTORY -------- Small Laser [Rating: 7] Favorites ----------- Power Light Ion Engine Engine Light Ion Engine Propulsion Aluminum Leg Leg Aluminum Leg Utility High-capacity Storage Unit Storage High-capacity Storage Unit Processor Signal Interpreter Weapon Assault Rifle Energy Gun Small Laser Ballistic Gun Assault Rifle Special Melee Weapon Datajack Build | -11 -10 ------- Run | Yrd Mat Slots Evolved . | . . Power . | . . Propulsion . | . . Utility . | . . Weapon . | . . Parts Attached 14 | 6 8 Power 2 | 1 1 Engine 2 | 1 1 Core . | . . Reactor . | . . Propulsion 3 | 2 1 Treads . | . . Leg 3 | 2 1 Wheel . | . . Hover . | . . Flight . | . . Utility 3 | . 3 Device . | . . Storage 2 | . 2 Processor 1 | . 1 Hackware . | . . Protection . | . . Artifact . | . . Weapon 6 | 3 3 Energy Gun 3 | 2 1 Energy Cannon . | . . Ballistic Gun 2 | 1 1 Ballistic Cannon . | . . Launcher . | . . Special Weapon . | . . Impact Weapon . | . . Slashing Weapon . | . . Piercing Weapon . | . . Special Melee Weapon 1 | . 1 Unidentified Prototypes . | . . Parts Lost 6 | . 6 Power 2 | . 2 Propulsion 1 | . 1 Utility . | . . Weapon 3 | . 3 Highest Loss Streak 3 | . 3 To Critical Strikes . | . . Average Slot Usage (%) 90 | . 90 Engine 13 | . 13 Leg 27 | . 27 Storage 13 | . 13 Processor 10 | . 10 Energy Gun 10 | . 10 Ballistic Gun 11 | . 11 Special Melee Weapon 1 | . 1 Peak Build Rating 7 | 5 7 Average Rating 6 | 3 6 On Entrance 2 | . 5 Naked Turns . | . . Heaviest Build 46 | 6 46 Greatest Support 20 | 20 20 Greatest Overweight (x) 4 | . 4 Average Overweight (x) 1 | . 1 Largest Inventory Capacity 20 | 5 20 Average Capacity 18 | 5 19 Most Carried 5 | 1 5 Average Carried 2 | . 2 Final Capacity 20 | 5 20 Final Carried 4 | 1 4 Class Distribution -------------------- 100% | Mutant Dominant Class ---------------- Mutant | -10/Materials Resources | -11 -10 ----------- Run | Yrd Mat Matter Collected 378 | 266 112 Remotely . | . . Salvage Created 324 | 44 280 Parts 27 | 2 25 Haulers Intercepted . | . . Recyclers Shooed . | . . Parts Field Recycled . | . . Retrieved Matter . | . . Parts Self-Destructed . | . . Prevented . | . . Kills | -11 -10 ------- Run | Yrd Mat Combat Hostiles Destroyed 8 | 1 7 Guns 8 | 1 7 Classes Destroyed 4 | 1 3 Worker 2 | . 2 Watcher 2 | . 2 Swarmer 3 | . 3 Grunt 5 | 1 4 Best Kill Streak 3 | 1 3 Combat Bots Only 2 | 1 2 Max Kills in Single Turn 1 | 1 1 Gunslinging . | . . Exploded . | . . Melee . | . . Uniques/NPCs Destroyed . | . . Combat | -11 -10 -------- Run | Yrd Mat Hostile Shots Fired 85 | 2 83 Missed 15 | . 15 Damage Taken 778 | 24 754 Core 253 | . 253 Absorbed by Shields . | . . Core Remaining (%) 100 | 100 . Volleys Fired 43 | 2 41 Largest 2 | 2 2 Hottest 60 | 60 60 Shots Fired 59 | 4 55 Gun 59 | 4 55 Cannon . | . . Launcher . | . . Special . | . . Kinetic 30 | 2 28 Thermal 29 | 2 27 Explosive . | . . Electromagnetic . | . . Robot Hit Streak 8 | 1 8 Robot Miss Streak 4 | 1 4 Penetration Max . | . . Secondary Targets 1 | . 1 Max Gunslinging Chain 1 | . 1 Shots Hit Robots 37 | 2 35 Core Hits 17 | 1 16 Critical Kills 1 | 1 . Critical Parts Destroyed . | . . Critical Strikes 1 | 1 . Destroy 1 | 1 . Melee Attacks 1 | . 1 Impact . | . . Slashing . | . . Piercing . | . . Sneak Attacks 1 | . 1 Combat Hostiles . | . . Follow-up Attacks . | . . Damage Inflicted 447 | 22 425 Guns 439 | 22 417 Cannons . | . . Explosions . | . . Melee . | . . Ramming 8 | . 8 Kinetic 254 | 22 232 Thermal 185 | . 185 Explosive . | . . Electromagnetic . | . . Impact . | . . Slashing . | . . Piercing . | . . Highest Corruption . | . . Average Corruption . | . . Corruption Purged . | . . Corruption Blocked . | . . Overload Shots . | . . Overflow Damage . | . . Projectiles . | . . Explosions . | . . Melee . | . . Knockbacks . | . . Impact . | . . Kinetic . | . . Secondary . | . . Self-Inflicted Damage . | . . Shots . | . . Rammed . | . . Targets Rammed 1 | . 1 Kicked 1 | . 1 Crushed . | . . Highest Temperature 18 | 12 18 Average Temperature 7 | 10 7 Received Heat Transfer 351 | 12 339 Siege Activations . | . . Robots Corrupted . | . . Combat Hostiles . | . . Parts Fried . | . . Impact Corruptions . | . . Robots Melted . | . . Combat Hostiles . | . . Parts Melted 1 | . 1 Heat Transferred 425 | . 425 Parts Sabotaged . | . . Parts Stolen . | . . Parts Stripped . | . . Power Chain Reactions . | . . Alert | -11 -10 ------- Run | Yrd Mat Peak Influence 102 | 20 102 Initial 13 | . 13 Average 17 | 1 18 Maximum Alert Level . | . . Low Security (%) 100 | 100 100 Level 1 . | . . Level 2 . | . . Level 3 . | . . Level 4 . | . . Level 5 . | . . High Security . | . . Max Security . | . . Squads Dispatched 3 | . 3 Investigation 1 | . 1 Extermination . | . . Reinforcement 2 | . 2 Assault . | . . Garrison . | . . Intercept . | . . Searches Triggered . | . . Construction Impeded . | . . Haulers Reinforced . | . . Active Scanning Responses . | . . Cargo Convoy Interrupts . | . . Stealth | -11 -10 --------- Run | Yrd Mat Distress Signals 2 | . 2 Communications Jammed . | . . Distress Signals . | . . Times Spotted 19 | 1 18 Peak Tracking Total 4 | 1 4 Tactical Retreats . | . . Traps | -11 -10 ------- Run | Yrd Mat Traps Triggered . | . . Indirectly . | . . Trap Hack Attempts 40 | . 40 Triggered 1 | . 1 Disarmed 4 | . 4 Reprogrammed . | . . Reused . | . . Traps Extracted . | . . Installed . | . . Triggered . | . . Machines | -11 -10 ---------- Run | Yrd Mat Machines Disabled . | . . Max in Single Turn . | . . Machines Repaired . | . . Machines Dismantled . | . . Machines Sabotaged . | . . Overloaded Fab Kills . | . . Hacking | -11 -10 --------- Run | Yrd Mat Machines Accessed . | . . Terminals . | . . Fabricators . | . . Repair Stations . | . . Recycling Units . | . . Scanalyzers . | . . Garrison Access . | . . Total Hacks . | . . Successful . | . . Failed . | . . Catastrophic . | . . Database Lockouts . | . . Manual . | . . Terminals . | . . Fabricators . | . . Repair Stations . | . . Recycling Units . | . . Scanalyzers . | . . Garrison Access . | . . Terminal Hacks . | . . Fabricator Hacks . | . . Repair Station Hacks . | . . Recycling Unit Hacks . | . . Scanalyzer . | . . Garrison Access Hacks . | . . Unauthorized Hacks . | . . Terminals . | . . Fabricators . | . . Repair Stations . | . . Recycling Units . | . . Scanalyzers . | . . Garrison Access . | . . Data Cores Recovered . | . . Used . | . . Hacking Detections . | . . Full Trace Events . | . . Feedback Events . | . . Feedback Blocked . | . . Robot Schematics Acquired . | . . Robots Built . | . . Authchips . | . . Time . | . . Total Robot Build Rating . | . . Part Schematics Acquired . | . . Parts Built . | . . Authchips . | . . Time . | . . Total Part Build Rating . | . . Parts Repaired . | . . Time . | . . Parts Recycled . | . . Recycled Matter . | . . Retrieved Matter . | . . Retrieved Components . | . . Parts Scanalyzed . | . . Part Schematics Acquired . | . . Parts Damaged . | . . Bothacking | -11 -10 ------------ Run | Yrd Mat Used RIF Installer . | . . Robots Hacked 1 | . 1 Non-combat 1 | . 1 Combat . | . . Robot Hacks Applied 1 | . 1 parse_system 1 | . 1 Relay Couplers Released . | . . Fabnet Peak Effective % . | . . Robots Rewired . | . . Allies Hacked . | . . Hacks Repelled . | . . Allies | -11 -10 -------- Run | Yrd Mat Total Allies . | . . Largest Group . | . . Highest-Rated Group . | . . Highest-Rated Ally . | . . Total Orders . | . . Ally Attacks . | . . Total Damage . | . . Kills . | . . Allies Corrupted . | . . Allies Melted . | . . Intel | -11 -10 ------- Run | Yrd Mat Robot Analysis Total . | . . Derelict Logs Recovered . | . . Drone Launches . | . . Drone Recoveries . | . . Exploration | -11 -10 ------------- Run | Yrd Mat Turns Passed 1613 | 95 1518 Spaces Moved 613 | 76 537 Core 15 | 15 . Treads . | . . Legs 598 | 61 537 Wheels . | . . Hover . | . . Flight . | . . Fastest Speed 50 | 50 120 Average Speed 232 | 106 249 Slowest Speed 400 | 120 400 Overloaded Moves . | . . Propulsion Burnouts . | . . Robots Hopped . | . . Cave-ins Triggered . | . . Exploration Rate (%) 33 | 5 61 Regions Visited 1 Branch Regions . Pre-discovered Areas . | . . Known Exits Taken . | . . Unknown Exits Taken 1 | 1 . Scrap Searched . | . . Spaces Dug . | . . Terrain Destroyed . | . . Melee . | . . Projectile . | . . AOE . | . . Terrain Rammed . | . . Walls Destroyed . | . . Machines Disabled . | . . Actions | -11 -10 --------- Run | Yrd Mat Total 740 | 84 656 Wait 23 | . 23 Move 612 | 75 537 Hop . | . . Pick Up 3 | . 3 Fast Attach 10 | 6 4 Attach 3 | . 3 Detach 3 | 1 2 Swap 1 | . 1 Drop . | . . Fire 43 | 2 41 Melee 1 | . 1 Ram . | . . Kick 1 | . 1 Crush . | . . Escape Stasis . | . . Rewire . | . . Trap 40 | . 40 Miscellaneous . | . . Route ------- -11/Scrapyard -10/Materials (discovered 1 exit: *Min) History --------- Turn | Location | Event 2 | -11/Scrapyard | Met Revision 17 77 | -11/Scrapyard | Discovered new exit (range 8) 96 | -11/Scrapyard | Entered Materials 301 | -10/Materials | Build established: Mutant 968 | -10/Materials | Discovered new exit (range 7) 981 | -10/Materials | Identified exit to Mines 1312 | -10/Materials | Lost 3 parts (1p2w) 1589 | -10/Materials | Core integrity fell below 50% 1608 | -10/Materials | Core integrity fell below 20% 1614 | -10/Materials | Destroyed by G-34 Mercenary with Small Laser Last Messages --------------- 01305_ K-01 Serf destroyed. 01306_ Acquired 3 matter. 01315_ Acquired Lgt. Ion Engine. 01316_ Acquired 10 matter. 01324_ Acquired Wheel. 01342_ R-06 Scavenger collects Aluminum Leg. 01347_ R-06 Scavenger collects Lgt. Assault Rifle. 01350_ R-06 Scavenger collects Ion Engine. 01351_ Acquired 10 matter. 01354_ R-06 Scavenger collects Flight Unit. 01450_ O-16 Technician: "IFF HANDSHAKE FAILED. SECURING TERMINAL." 01454_ O-16 Technician uses terminal to summon reinforcements. 01454_ ALERT: Hostiles spotted, dispatching reinforcements to Terminal M007. 01454_ O-16 Technician locks terminal. 01586_ M-13 Machinist repairs G-47 Trooper. 01588_ Assault Rifle destroyed. 01591_ Aluminum Leg destroyed. 01599_ Lgt. Ion Engine destroyed. 01605_ K-01 Serf cleans the Electrolysis Chamber. Map ----- +----------------------------------------------------+ | ????????????????????????????????????????????? | | ????????????????????????????????????????????? | | ????????????????????????????????????????????? | | ????????????????????????????????????????????? | | ????????????????????????????????????????????? | | ????????????????????????????????????????????? | | ????????????????????????????????????????????? | | ????????????????????????????????????????????? | | ????????????????????????????????????????????? | | ????????????????????????????????????????????? | | ????????????????????????????????????????????? | | ????????????????????????????????????????????? | | ???##########???????????????????????????????? | | ?### # ??????????????????????????????? | | ?#"" # ??????????????????????????????? | | ?#"" #+##+######+#####???????????????? | | ?#"T # ???????????????? | | ?#"" + ???????????????? | | ?#"" ! # ???????????????? | | ??## # ###################???####### | | ???# # ## ## ##### ! # | | ???# # ## """ """ ## | | ???##+####### ## """ """ + %% T | | ????# #?????# ## """ """ ## % | | ????# #?????# ## ## % ##### # | | ????# #????## ## @k ! ### ##???####### | | ????# #????# ###g######### ##### #? | | ????# #????# g #? | | ????# #????# g g #? | | ????# #????# k #? | | ????# #????# ##########+########## #? | | ????# #????### ###???##### #????????? ##? | | ????# ######## #????[[[[## #??????????? #?# | | ????# |! #???![[[[## =#????????????#?# | | ????# |[ #?? ?# #??????????????# | | ????# "" ### #???# #??????????????# | | ????# "Y #???#= #??????????????# | | ????# "" ^ #???# #??????????????# | | ????# #???#####??????????????# | | ????# ##+#??????????????????????# | | ????# #?????????????????????????# | | ????# #?????????????????????????# | | ????# +?????????????????????????# | | ????# ######## # ????????????????????????# | | ????# #??????# # ???????????????????????# | | ????# ???????# +? ???????????????????????# | | ????# ???????# #? ??????????????????????? | | ????# ???????# #??##?????????????????????? | | ????# ???????? ?????????????????????????? | | ????# ???????? #####????????????????????????? | +----------------------------------------------------+ Best States ------------- Heat Dissipation 25 Energy Generation 10 Energy Capacity 125 Matter Stores 300 Matter Capacity 300 Sight Range 16 Terrain Scan Density 10 Evasion (%) 55 Item Schematics ----------------- None Robot Schematics ------------------ None Fabricated ------------ Nothing Alien Tech Used ----------------- None Achievements -------------- None Challenges ------------ None Game ------ Seed WarpPropulsionCalibrator Manual? 0 Play Time 00:09:56 Cumulative 16.5 hours Start 2024.11.02 @ 13:52:58 End 2024.11.02 @ 14:03:51 Sessions 1 Manual Loads 0 Difficulty Rogue Special Mode None Game No. 30 Rogue 30 Adventurer 0 Explorer 0 Win Type - Total 0 Types 0/0/0/0/0/0/0/0/0 Lore% 6 Gallery% 12 Achievement% 13 Wizard Run 0 Options --------- Layout 0 ASCII 0 Keyboard 1 Movement Numpad Keybinds 0 Fullscreen 1 Font 24/Smallcaps Map View 76x50 Zoom Use 0% Tactical HUD 1 Map Filters NONE Filters NONE Steam 1 RUN: 9ac078fe-d0ef-466a-85b0-7f37c7fa2f1f